{"text_format":"1","workbook":"xlsx","n_sheets":1,"sheets":["Summary"],"not_rendered":{"charts":3,"images":13,"macros":1,"external_links":0,"defined_names":0,"comments":0,"pivot_tables":4},"unopened":[],"bounds":{"document_bytes":16777216,"sheet_cells":100000,"rows_first":2000,"rows_last":500,"rows_between":2000,"halvings":0,"cell_chars":16384,"cell_head_chars":4096},"cells_cut":0,"cells_raw":0,"read":"whole","date_system":"1900"}

{"sheet":"Summary","index":0,"n_rows":87,"n_cols":18,"rows_kept":87,"cut":false,"hidden":false,"merged":[[32,1,37,1],[32,2,37,2],[32,4,37,4],[32,3,37,3],[38,4,41,4],[38,1,41,1],[38,2,41,2],[32,6,37,6],[38,6,41,6],[32,5,37,5],[38,5,41,5],[38,3,41,3]]}
[]
[]
[]
[]
[]
[]
[]
[]
[]
[]
[]
[]
[]
[]
[]
[]
[]
[]
[]
[]
[]
[]
[]
[]
[]
[]
[]
[]
[]
[]
[]
[null,"No. of Books","Pages Read","Books Completed","Money Invested","Books in Wishlist","Currently Reading"]
[]
[]
[]
[]
[]
[]
[null,{"$f":"COUNTA(Table1[Title])","v":36},{"$f":"SUMIF(Table1[Read],\"Read\",Table1[Pages])","v":8763},{"$f":"COUNTIF(Table1[Read],\"Read\")","v":31},{"$f":"SUMIF(Table1[Read],\"Read\",Table1[Price])","v":10621.79},{"$f":"COUNTIF(Table1[Read],\"Want to Read\")","v":4},{"$f":"_xlfn.XLOOKUP(\"Reading\",Table1[[#All],[Read]],Table1[[#All],[Title]])","v":"Thinking Fast and Slow"}]
[]
[]
[]
[]
[]
["Title","Author","Pages","Language","Price","Added Date","Read","Category",null,null,null,"Language","Category","Status"]
["The Law of Success in Sixteen Lessons","Napoleon Hill",759,"English",249,{"$f":"DATE(2021,3,6)","v":"2021-03-06"},"Read","Self Help",null,null,null,"Hindi","Self Help","Read"]
["Life's Amazing Secrets: How to Find Balance and Purpose in Your Life","Gaur Gopal Das",232,"English",212,{"$f":"DATE(2021,5,8)","v":"2021-05-08"},"Read","Self Help",null,null,null,"English","Finance","Reading"]
["Sampannata ke Chipe Hue Rahasya (Hindi Edition)","Napoleon Hill",182,"Hindi",71.790000000000006,{"$f":"DATE(2021,8,6)","v":"2021-08-06"},"Read","Self Help",null,null,null,null,"Business","Want to Read"]
["The Total Money Makeover: Classic Edition: A Proven Plan for Financial Fitness","Dave Ramsey",600,"English",1367,{"$f":"DATE(2021,3,6)","v":"2021-03-06"},"Read","Finance",null,null,null,null,"Biography"]
["Deep Work: Rules for Focused Success in a Distracted World","Cal Newport",296,"English",399,"2021-03-06","Read","Self Help",null,null,null,null,"Personality Development"]
["The Business School","Robert T. Kiyosaki",127,"English",150,{"$f":"DATE(2021,10,4)","v":"2021-10-04"},"Read","Business"]
["Cashflow Quadrant (Hindi)","Robert T. Kiyosaki",287,"Hindi",195,"2021-03-06","Read","Finance"]
["Kaise Paye Vyapar Mein Jadui Safalta (Midas Touch) (Hindi)","Robert T. Kiyosaki",246,"Hindi",295,"2021-03-06","Read","Business"]
["21 Vi Sadi Ka Vyvasaya (The Business of the 21st Century) (Hindi)","Robert T. Kiyosaki",168,"Hindi",195,"2021-03-06","Read","Business"]
["Self-Help: With Illustrations of Conduct and Perseverance","Samuel Smiles",360,"English",199,"2021-03-06","Read","Self Help"]
["Jeet aapki","Shiv Kheda",300,"Hindi",350,"2021-03-06","Read","Self Help",null,"Count of Read",null,null,null,null,null,null,"Sum of Price"]
["Little Black Book for Stunning Success","Robin Sharma",288,"English",294,"2021-03-06","Read","Self Help",null,"Language","Total",null,"Count of Read",null,null,null,"Author","Total"]
["Rich Dad Poor Dad: What the Rich Teach Their Kids About Money That the Poor and Middle Class Do Not!","Robert T. Kiyosaki",336,"English",487,"2021-03-06","Read","Self Help",null,"English",27,null,"Category","Total",null,null,"Dave Ramsey",1367]
["Questions are the Answers (Hindi)","Allan Pease",110,"Hindi",95,"2021-03-06","Read","Self Help",null,"Hindi",9,null,"Biography",1,null,null,"Robert T. Kiyosaki",1322]
["B2B Means Back to Basics","Bill Quain",124,"English",100,"2021-03-06","Read","Self Help",null,"Grand Total",36,null,"Business",3,null,null,"Jason Fried",1180]
["Say Yes To Your Potential (English)","Skip Ross With Carole C.Carlson",300,"English",799,"2021-03-06","Read","Self Help",null,null,null,null,"Finance",4,null,null,"Dr. Henry Cloud",999]
["You Can Win: A Step-by-Step Tool for Top Achievers","Shiv Khera",314,"English",272,"2021-03-06","Read","Self Help",null,null,null,null,"Self Help",26,null,null,"Mark Manson",890]
["Master Blaster Sachin Tendulker","Gulu Ezekiel",263,"Hindi",95,"2021-03-06","Read","Biography",null,null,null,null,"Personality Development",2,null,null,"Skip Ross With Carole C.Carlson",799]
["Chase Your Dreams: My Autobiography","Sachin Tendulkar",238,"English",224,"2021-03-06","Read","Self Help",null,null,null,null,"Grand Total",36,null,null,"Daniel Kahneman",699]
["The Psychology of Money","Morgan Housel",252,"English",277,"2021-03-06","Read","Finance",null,null,null,null,null,null,null,null,"Timothy Ferriss ",569]
["24-HOUR TURN-AROUND, THE","HARTNESS JIM & ESKELIN NEIL",174,"Hindi",340,"2021-03-06","Read","Self Help",null,null,null,null,null,null,null,null,"Robin Sharma",532]
["The Subtle Art of Not Giving a F*ck: A Counterintuitive Approach to Living a Good Life","Mark Manson",212,"English",323,"2021-03-06","Read","Self Help",null,null,null,null,null,null,null,null,"Ichiro Kishimi and Fumitake Koga",487]
["Everything Is F*cked","Mark Manson",275,"English",567,"2021-03-06","Read","Self Help",null,null,null,null,null,null,null,null,"James Clear",429]
["The Richest Man In Babylon","George S. Clason",155,"English",99,"2021-03-06","Read","Finance",null,"Count of Language",null,null,null,null,null,null,"Cal Newport",399]
["Kuch Alag Karein Ameer Bane (Dare to be Different and Grow Rich)","Rainer Zitelmann",277,"Hindi",225,"2021-03-06","Read","Self Help",null,"Read","Total",null,null,null,null,null,"Peter Thiel",378]
["The 5 AM Club: Own Your Morning, Elevate Your Life","Robin Sharma",336,"English",238,"2021-03-06","Read","Self Help",null,"Reading",1,null,null,null,null,null,"Shiv Kheda",350]
["How to enjoy your life and your job- Fingerprint","Dale Carnegie",216,"English",110,"2021-03-06","Read","Self Help",null,"Want to Read",4,null,null,null,null,null,"HARTNESS JIM & ESKELIN NEIL",340]
["DO EPIC SHIT","Ankur Warikoo",293,"English",298,"2021-03-06","Read","Self Help",null,"Read",31,null,null,null,null,null,"Napoleon Hill",320.79000000000002]
["The Courage To Be Disliked: How to free yourself, change your life and achieve real happiness (Courage To series)","Ichiro Kishimi and Fumitake Koga",288,"English",487,"2021-03-06","Read","Self Help",null,"Grand Total",36,null,null,null,null,null,"Ankur Warikoo",298]
["Atomic Habits: An Easy & Proven Way to Build Good Habits & Break Bad Ones","James Clear",467,"English",429,"2021-03-06","Read","Self Help",null,null,null,null,null,null,null,null,"Morgan Housel",277]
["ReWork: Change the Way You Work Forever","Jason Fried",288,"English",1180,"2021-03-06","Read","Self Help",null,null,null,null,null,null,null,null,"Shiv Khera",272]
["Boundaries","Dr. Henry Cloud","NA","English",999,"2022-03-12","Want to Read","Self Help",null,null,null,null,null,null,null,null,"Dr. Robert A. Glover ",240]
["Zero to One","Peter Thiel","NA","English",378,"2022-01-11","Want to Read","Self Help",null,null,null,null,null,null,null,null,"Rainer Zitelmann",225]
["The four Hour Week","Timothy Ferriss ","NA","English",569,"2022-03-15","Want to Read","Self Help",null,null,null,null,null,null,null,null,"Sachin Tendulkar",224]
["No more nice guy","Dr. Robert A. Glover ","NA","English",240,"2022-04-23","Want to Read","Personality Development",null,null,null,null,null,null,null,null,"Gaur Gopal Das",212]
["Thinking Fast and Slow","Daniel Kahneman",498,"English",699,"2022-04-30","Reading","Personality Development",null,null,null,null,null,null,null,null,"Samuel Smiles",199]
[null,null,null,null,null,null,null,null,null,null,null,null,null,null,null,null,"Dale Carnegie",110]
[null,null,null,null,null,null,null,null,null,null,null,null,null,null,null,null,"Bill Quain",100]
[null,null,null,null,null,null,null,null,null,null,null,null,null,null,null,null,"George S. Clason",99]
[null,null,null,null,null,null,null,null,null,null,null,null,null,null,null,null,"Allan Pease",95]
[null,null,null,null,null,null,null,null,null,null,null,null,null,null,null,null,"Gulu Ezekiel",95]
[null,null,null,null,null,null,null,null,null,null,null,null,null,null,null,null,"Grand Total",13506.79]